bitfinex-derivatives/quotes_BTCF0:USTF0_20251210
["timestamp","ask_amount","ask_price","bid_price","bid_amount"]
[1765376705122,0.32234,92005.0,92004.0,0.0376304]
[1765376705522,0.32234,92005.0,92004.0,0.2049004]
[1765376706436,0.32234,92005.0,92004.0,0.3701404]
[1765376707725,0.32234,92005.0,92004.0,0.0366304]
[1765376707931,0.3322102,91996.0,91995.0,0.00016298]
[1765376708235,0.3322102,91996.0,91976.0,0.39203227]
[1765376708236,0.3322125,91977.0,91976.0,0.39203227]
[1765376708425,0.3322125,91977.0,91976.0,0.33351]
[1765376708630,0.6930125,91977.0,91976.0,0.33351]
[1765376709633,0.68214,91977.0,91976.0,0.33351]
[1765376710829,0.3638,91977.0,91976.0,0.33351]
[1765376711035,0.3638,91977.0,91976.0,0.33451]
[1765376711238,0.3608,91982.0,91981.0,0.344382]
[1765376711432,0.00016309,91986.0,91985.0,0.3443815]
[1765376712529,0.00316309,91986.0,91985.0,0.3443815]
[1765376713637,0.00316309,91986.0,91985.0,0.40294268]
[1765376713935,0.00316309,91986.0,91985.0,0.3443815]
[1765376714143,0.00316309,91986.0,91985.0,0.33351]
[1765376714144,0.00416309,91986.0,91985.0,0.33351]
[1765376714951,0.00416309,91986.0,91985.0,0.39206509]
[1765376715140,0.00416309,91986.0,91985.0,0.33351]
[1765376716630,0.00416309,91986.0,91985.0,0.3443815]
[1765376717342,0.00416309,91986.0,91985.0,0.33351]
[1765376719438,0.00416309,91986.0,91985.0,0.39205962]
[1765376719948,0.00416309,91986.0,91985.0,0.42157435]
[1765376721532,0.00416309,91986.0,91985.0,0.37389623]
[1765376721933,0.09703,92010.0,91985.0,0.37389623]
[1765376721934,0.7624487,92009.0,92008.0,0.38772]
[1765376722137,0.7624487,92009.0,92008.0,0.41723473]
[1765376722438,0.56363,92009.0,92008.0,0.41723473]
[1765376722740,0.39078,92014.0,92013.0,0.38772]
[1765376723042,0.39078,92014.0,92013.0,0.77803473]
[1765376723840,0.39378,92014.0,92013.0,0.77803473]
[1765376724340,0.39778,92014.0,92013.0,0.77903473]
[1765376727248,0.39778,92014.0,92013.0,0.41823473]
[1765376727755,0.39778,92014.0,92013.0,0.03051473]
[1765376727952,0.39778,92014.0,92013.0,3e-08]
[1765376728142,0.3836491,92005.0,92004.0,0.00016309]
[1765376728337,1.2498891,92005.0,92004.0,0.00016309]
[1765376729355,1.2518891,92005.0,92004.0,0.00016309]
[1765376729745,0.3836512,91988.0,91987.0,0.19362]
[1765376730053,0.3836517,91983.0,91982.0,0.38538]
[1765376731555,0.3836517,91983.0,91982.0,0.42440505]
[1765376732751,0.3836517,91983.0,91982.0,0.42640505]
[1765376733259,0.3836517,91983.0,91982.0,0.38738]
[1765376733460,0.3846517,91983.0,91982.0,0.39138]
[1765376738573,0.7454517,91983.0,91982.0,0.39138]
[1765376738871,0.7454517,91983.0,91982.0,0.43042777]
[1765376739075,0.7454517,91983.0,91982.0,0.006]
[1765376739573,0.7454517,91983.0,91973.0,0.3610574]
[1765376739574,0.4956728,91974.0,91973.0,0.0002574]
[1765376739770,1.3619528,91974.0,91973.0,0.0002574]
[1765376739966,1.3619528,91974.0,91973.0,0.02962236]
[1765376740166,1.3619528,91974.0,91973.0,0.22324236]
[1765376740968,1.3629528,91974.0,91973.0,0.42100236]
[1765376741172,0.7454528,91974.0,91973.0,0.42100236]
[1765376741379,1.2509328,91974.0,91973.0,0.42100236]
[1765376742068,1.3629528,91974.0,91973.0,0.42400236]
[1765376742679,1.3629528,91974.0,91973.0,0.03662236]
[1765376742975,1.3629528,91974.0,91973.0,0.03162236]
[1765376743576,1.3629528,91974.0,91973.0,0.22524236]
[1765376744473,1.3629528,91974.0,91973.0,0.03162236]
[1765376744665,1.3629528,91974.0,91973.0,0.00641682]
[1765376745178,1.3629528,91974.0,91965.0,0.00108738]
[1765376745179,0.3836535,91968.0,91966.0,0.02926558]
[1765376745473,0.8783,91967.0,91966.0,0.02926558]
[1765376745679,0.87839196,91967.0,91966.0,0.02926558]
[1765376746163,0.87839196,91967.0,91965.0,0.00108738]
[1765376746164,0.4956738,91966.0,91965.0,0.03035296]
[1765376746370,0.8564738,91966.0,91965.0,0.03035296]
[1765376747076,0.8564738,91966.0,91958.0,0.03904777]
[1765376747077,0.37278,91962.0,91961.0,0.0242651]
[1765376747273,0.3836547,91958.0,91957.0,0.38554309]
[1765376747479,0.8891747,91958.0,91957.0,0.38554309]
[1765376748275,0.8891747,91958.0,91957.0,0.00016309]
[1765376748676,0.8891747,91958.0,91957.0,0.19378309]
[1765376749277,0.8901747,91958.0,91957.0,0.00116309]
[1765376749675,0.8901747,91958.0,91957.0,0.38654309]
[1765376750273,0.8901747,91958.0,91957.0,0.00116309]
[1765376750576,0.8901747,91958.0,91957.0,0.38654309]
[1765376751476,0.8901747,91958.0,91957.0,0.19478309]
[1765376751677,0.8901747,91958.0,91957.0,0.38654309]
[1765376753480,0.8901747,91958.0,91957.0,0.00116309]
[1765376753680,0.89026901,91958.0,91957.0,0.00116309]
[1765376754480,0.89026901,91958.0,91957.0,0.00016309]
[1765376754677,0.38574901,91958.0,91957.0,0.38554309]
[1765376755075,0.89134901,91958.0,91957.0,0.38554309]
[1765376755281,0.89034901,91958.0,91957.0,0.38554309]
[1765376755483,0.89434901,91958.0,91957.0,0.38554309]
[1765376756281,0.00509431,91958.0,91957.0,0.39641789]
[1765376756482,0.37787431,91958.0,91957.0,0.38554309]
[1765376757083,0.37787431,91958.0,91957.0,0.19378309]
[1765376757883,0.37787431,91958.0,91957.0,0.38554309]
[1765376758385,0.37787431,91958.0,91957.0,0.00016309]
[1765376760984,0.37787431,91958.0,91957.0,0.02884441]
[1765376761185,0.37787431,91958.0,91957.0,0.20458441]
[1765376761392,0.37787431,91958.0,91957.0,0.39183441]
[1765376761584,0.37787431,91958.0,91957.0,0.02884441]
[1765376762483,0.35372,91941.0,91940.0,0.00108767]
[1765376762790,0.85945431,91941.0,91940.0,0.36407767]
[1765376762985,1.22025431,91941.0,91940.0,0.36407767]
[1765376763577,1.22025431,91941.0,91940.0,0.00108767]
[1765376763978,1.22025431,91941.0,91940.0,0.17682767]
[1765376764188,1.22025431,91941.0,91940.0,0.36407767]
[1765376764388,1.22025431,91941.0,91940.0,0.36507767]
[1765376764784,1.22125431,91941.0,91940.0,0.36507767]
[1765376766686,1.22125431,91941.0,91940.0,0.00208767]
[1765376768185,1.22125431,91941.0,91940.0,0.17782767]
[1765376768494,0.71561431,91941.0,91940.0,0.17782767]
[1765376768696,1.22149431,91941.0,91940.0,0.17782767]
[1765376769796,1.22149431,91941.0,91940.0,0.00208767]
[1765376770895,1.22149431,91941.0,91940.0,0.17782767]
[1765376771097,1.22149431,91941.0,91940.0,0.00208767]
[1765376780601,1.22149431,91941.0,91940.0,0.16766767]
[1765376780806,1.22149431,91941.0,91940.0,0.33588767]
[1765376781008,1.22149431,91941.0,91940.0,0.00208767]
[1765376781595,1.22149431,91941.0,91940.0,0.16766767]
[1765376781805,1.22145431,91941.0,91940.0,0.33588767]
[1765376783600,1.22145431,91941.0,91940.0,0.00208767]
[1765376785313,1.22141431,91941.0,91940.0,0.33588767]
[1765376785909,0.36189431,91941.0,91940.0,0.33588767]
[1765376786104,0.00109431,91941.0,91940.0,0.33588767]
[1765376786808,0.17841431,91941.0,91940.0,0.33588767]
[1765376787412,0.00109431,91941.0,91940.0,0.33588767]
[1765376787805,0.00109431,91941.0,91940.0,0.4240389]
[1765376788303,0.00109431,91941.0,91940.0,0.42413376]
[1765376789114,0.00109431,91941.0,91940.0,0.36549288]
[1765376789315,0.34170431,91941.0,91940.0,0.36549288]
[1765376789707,0.34170431,91941.0,91940.0,0.43501937]
[1765376792206,0.70250431,91941.0,91940.0,0.42414147]
[1765376792416,0.70250431,91941.0,91940.0,0.36549288]
[1765376792721,0.70250431,91941.0,91940.0,0.03169288]
[1765376793409,0.70250431,91941.0,91940.0,0.07080612]
[1765376794116,0.70250431,91941.0,91940.0,0.40102612]
[1765376794505,0.70250431,91941.0,91940.0,0.23823612]
[1765376794709,1.20826431,91941.0,91940.0,0.40102612]
[1765376796219,0.84758431,91941.0,91940.0,0.36191288]
[1765376796525,0.50697431,91941.0,91940.0,0.36191288]
[1765376797113,0.66903431,91941.0,91940.0,0.36191288]
[1765376797523,0.83232431,91941.0,91940.0,0.36191288]
[1765376800722,0.32644431,91941.0,91940.0,0.36191288]
[1765376801224,0.16315431,91941.0,91940.0,0.36191288]
[1765376802028,0.00109431,91941.0,91940.0,0.36191288]
[1765376809528,0.32644431,91941.0,91940.0,0.36191288]
[1765376809933,0.32644431,91941.0,91940.0,0.42056466]
[1765376810128,0.32644431,91941.0,91940.0,0.36191288]
[1765376810335,0.00109431,91941.0,91940.0,0.36191288]
[1765376814328,0.32644431,91941.0,91940.0,0.36191288]
[1765376815741,0.00109431,91941.0,91940.0,0.36191288]
[1765376821137,0.00109431,91941.0,91940.0,0.3625721]
[1765376821534,0.00016309,91950.0,91949.0,0.3160469]
[1765376821742,0.00099999,91960.0,91959.0,0.3160457]
[1765376821932,0.00099999,91960.0,91959.0,0.34631013]
[1765376822126,0.41441,91968.0,91967.0,0.3160447]
[1765376822329,0.41441,91968.0,91967.0,0.34630913]
[1765376823432,0.41741,91968.0,91967.0,0.38541285]
[1765376823629,0.42341,91968.0,91967.0,0.38541285]
[1765376824141,0.42341,91968.0,91967.0,0.37453815]
[1765376826336,0.42341,91968.0,91967.0,0.33543443]
[1765376827034,0.42341,91968.0,91967.0,0.69623443]
[1765376827243,0.16481,91968.0,91967.0,0.69623443]
[1765376827641,0.009,91968.0,91967.0,0.69623443]
[1765376827946,0.00016309,91977.0,91976.0,0.3160437]
[1765376828243,0.31412309,91977.0,91976.0,0.34630813]
[1765376829654,0.32499659,91977.0,91976.0,0.03026443]
[1765376829846,0.68579659,91977.0,91976.0,0.03026443]
[1765376830041,0.68979659,91977.0,91976.0,0.03026443]
[1765376830242,0.69079659,91977.0,91976.0,0.03026443]
[1765376832445,1.19643659,91977.0,91976.0,0.03026443]
[1765376832951,1.19643659,91977.0,91976.0,0.33543443]
[1765376833249,1.19643659,91977.0,91976.0,0.03026443]
[1765376833642,1.19643659,91977.0,91976.0,0.33543443]
[1765376833951,0.00516309,91977.0,91976.0,0.33543443]
[1765376835257,0.31912309,91977.0,91976.0,0.33543443]
[1765376836435,0.31912309,91977.0,91976.0,0.39395337]
[1765376836436,0.00516309,91977.0,91976.0,0.39395337]
[1765376836845,0.51489,91989.0,91988.0,0.30873]
[1765376837043,0.00108708,91990.0,91989.0,0.30873]
[1765376837237,0.00108708,91990.0,91989.0,0.33899443]
[1765376838046,0.15517708,91990.0,91989.0,0.33899443]
[1765376839451,0.15817708,91990.0,91989.0,0.33899443]
[1765376839849,0.15917708,91990.0,91989.0,0.33999443]
[1765376840051,0.00308708,91990.0,91989.0,0.33999443]
[1765376841155,0.00016309,91999.0,91998.0,0.30873]
[1765376841343,0.00016309,91999.0,91998.0,0.69979443]
[1765376841542,0.15425309,91999.0,91998.0,0.69979443]
[1765376841743,0.29780309,91999.0,91998.0,0.69979443]
[1765376842146,0.00099999,92010.0,92005.0,0.0108702]
[1765376842344,0.0108689,92017.0,92005.0,0.37907504]
[1765376842541,0.0108689,92017.0,92005.0,0.34986463]
[1765376842741,0.38716679,92015.0,92014.0,0.30873]
[1765376842945,0.00108679,92015.0,92014.0,0.34986363]
[1765376843350,0.29872679,92015.0,92014.0,0.34986363]
[1765376843655,0.38716679,92015.0,92014.0,0.34986363]
[1765376844762,0.39016679,92015.0,92014.0,0.35086363]
[1765376845256,0.38716679,92015.0,92014.0,0.34986363]
[1765376845447,0.38816679,92015.0,92014.0,0.35186363]
[1765376846045,0.38916679,92015.0,92014.0,0.35186363]
[1765376847659,0.38916679,92015.0,92014.0,0.38107121]
[1765376848656,0.00308679,92015.0,92014.0,0.38107121]
[1765376849058,0.39639679,92015.0,92014.0,0.38107121]
[1765376849861,0.39639679,92015.0,92014.0,0.37020201]
[1765376850245,0.39639679,92015.0,92014.0,0.06147201]
[1765376850446,0.39639679,92015.0,92014.0,0.20837201]
[1765376850848,0.75719679,92015.0,92014.0,0.17916443]
[1765376852258,0.75719679,92015.0,92014.0,0.33437443]
[1765376853251,0.75719679,92015.0,92014.0,0.37445121]
[1765376853459,0.75719679,92015.0,92014.0,0.33437443]
[1765376855057,0.39639679,92015.0,92014.0,0.33437443]
[1765376855260,0.75719679,92015.0,92014.0,0.33437443]
[1765376856163,0.75719679,92015.0,92014.0,0.03226443]
[1765376859752,0.75719679,92015.0,92014.0,0.19003363]
[1765376860165,0.75719679,92015.0,92014.0,0.37445121]
[1765376860368,0.00308679,92015.0,92014.0,0.34524363]
[1765376861056,0.00016309,92024.0,92014.0,0.34524363]
[1765376861057,0.00016309,92024.0,92023.0,0.3129781]
[1765376861357,0.39439649,92040.0,92039.0,0.30211]
[1765376861562,0.39439649,92040.0,92039.0,0.33237443]
[1765376862065,0.39439649,92040.0,92039.0,0.34324063]
[1765376863365,0.39439649,92040.0,92039.0,0.3821798]
[1765376864070,0.39539649,92040.0,92039.0,0.3821798]
[1765376864472,0.39539649,92040.0,92039.0,0.34324063]
[1765376864877,0.39539649,92040.0,92039.0,0.34424063]
[1765376865672,0.39639649,92040.0,92039.0,0.34524063]
[1765376866070,0.00308649,92040.0,92039.0,0.34524063]
[1765376866273,0.00308649,92040.0,92039.0,0.70604063]
[1765376866573,0.00016299,92049.0,92048.0,0.3129752]
[1765376866776,0.00016299,92049.0,92048.0,0.34323963]
[1765376867669,0.00116299,92049.0,92048.0,0.34523963]
[1765376867870,0.30342299,92049.0,92048.0,0.34523963]
[1765376868462,0.30242299,92049.0,92048.0,0.34523963]
[1765376868965,0.00116299,92049.0,92048.0,0.70603963]
[1765376869358,0.14975299,92049.0,92048.0,0.70603963]
[1765376869955,0.30242299,92049.0,92048.0,0.70603963]
[1765376871065,0.00116299,92049.0,92048.0,0.70603963]
[1765376872565,0.14975299,92049.0,92048.0,0.70603963]
[1765376873761,0.30242299,92049.0,92048.0,0.70603963]
[1765376875269,0.30242299,92049.0,92048.0,0.69517443]
[1765376875472,0.30242299,92049.0,92048.0,0.37328569]
[1765376875473,0.31328799,92049.0,92048.0,0.37328569]
[1765376875868,0.30242299,92049.0,92048.0,0.37328569]
[1765376876366,0.30242299,92049.0,92048.0,0.17916443]
[1765376876564,0.30242299,92049.0,92048.0,0.03226443]
[1765376876765,0.66322299,92049.0,92048.0,0.03226443]
[1765376877083,0.3121268,92034.0,92033.0,0.03891126]
[1765376877280,0.3121268,92034.0,92030.0,0.03907425]
[1765376877281,0.30126,92031.0,92030.0,0.03907425]
[1765376877582,0.30126,92031.0,92030.0,0.00016299]
[1765376877777,0.30126,92031.0,92030.0,0.28066299]
[1765376878481,0.30226,92031.0,92030.0,0.28566299]
[1765376879669,0.30226,92031.0,92030.0,0.00816299]
[1765376879871,0.30226,92031.0,91980.0,0.16528005]
[1765376879872,0.2844888,92017.0,92016.0,0.03891126]
[1765376880076,0.27362,92014.0,92013.0,0.27096]
[1765376880272,0.27362,92012.0,92011.0,0.03891126]
[1765376880480,0.08582,92015.0,92009.0,0.03891126]
[1765376880481,0.2844895,92011.0,92009.0,0.03891126]
[1765376880679,0.08582,92015.0,92009.0,0.03891126]
[1765376880680,0.27362,92010.0,92009.0,0.03891126]
[1765376880987,0.35944,92001.0,92000.0,0.27112299]
[1765376881380,0.35944,92001.0,92000.0,0.13752299]
[1765376881781,0.35944,92001.0,92000.0,0.27112299]
[1765376882672,0.35944,92001.0,92000.0,0.13752299]
[1765376882875,0.35944,92001.0,92000.0,0.13952299]
[1765376883283,0.35944,92001.0,92000.0,0.00216299]
[1765376884286,0.36044,92001.0,92000.0,0.27512299]
[1765376884773,0.36044,92001.0,92000.0,0.00416299]
[1765376885484,0.36044,92001.0,92000.0,0.14152299]
[1765376887079,0.36044,92001.0,92000.0,0.27512299]
[1765376887892,0.36044,92001.0,92000.0,0.14152299]
[1765376888094,0.36044,92001.0,92000.0,0.27512299]
[1765376888881,0.36044,92001.0,92000.0,0.30458671]
[1765376890895,0.36044,92001.0,92000.0,0.03362671]
[1765376891090,0.36044,92001.0,92000.0,0.17098671]
[1765376891297,0.36044,92001.0,92000.0,0.30458671]
[1765376894309,0.36044,92001.0,92000.0,0.03362671]
[1765376894609,0.36044,92001.0,92000.0,0.29667671]
[1765376898506,0.36044,92001.0,92000.0,0.16493671]
[1765376898710,0.36044,92001.0,92000.0,0.03362671]
[1765376901815,0.36044,92001.0,92000.0,0.16493671]
[1765376902711,0.36044,92001.0,92000.0,0.03362671]
[1765376902912,0.3713107,92001.0,92000.0,0.03362671]
[1765376904218,0.3713107,92001.0,92000.0,0.02886946]
[1765376904412,0.3713107,92001.0,91976.0,9.305e-05]
[1765376904413,0.0108726,91985.0,91976.0,9.305e-05]
[1765376904613,0.26911,91977.0,91976.0,9.305e-05]
[1765376904917,0.26911,91977.0,91976.0,0.13140305]
[1765376905116,0.26911,91977.0,91976.0,0.26314305]
[1765376906425,0.27211,91977.0,91976.0,0.26414305]
[1765376907017,0.77847,91977.0,91976.0,0.00109305]
[1765376907328,0.77847,91977.0,91976.0,0.04002941]
[1765376907620,0.77847,91977.0,91976.0,0.30307941]
[1765376907825,0.77847,91977.0,91976.0,0.26414305]
[1765376908319,0.77847,91977.0,91976.0,0.30307941]
[1765376909119,0.77847,91977.0,91976.0,0.26414305]
[1765376911327,0.77847,91977.0,91976.0,0.04013553]
[1765376911921,0.77847,91977.0,91976.0,0.17134553]
[1765376912226,0.77847,91977.0,91976.0,0.30652553]
[1765376912526,0.77847,91977.0,91976.0,0.13230305]
[1765376913120,0.77847,91977.0,91976.0,0.26748305]
[1765376913727,0.7893435,91977.0,91976.0,0.26748305]
[1765376914117,0.7893435,91977.0,91976.0,0.00109305]
[1765376916324,0.7893435,91977.0,91976.0,0.03056364]
[1765376916736,0.7893435,91977.0,91976.0,0.01847694]
[1765376917725,0.78943655,91977.0,91976.0,0.01847694]
[1765376918233,0.78943655,91977.0,91976.0,0.28486694]
[1765376918420,0.77864305,91977.0,91976.0,0.28486694]
[1765376921931,0.27320305,91977.0,91976.0,0.28486694]
[1765376922135,0.77864305,91977.0,91976.0,0.28486694]
[1765376922338,0.27320305,91977.0,91976.0,0.28486694]
[1765376922634,0.77864305,91977.0,91976.0,0.28486694]
[1765376923931,0.27320305,91977.0,91976.0,0.28486694]
[1765376924133,0.77864305,91977.0,91976.0,0.28486694]
[1765376924838,0.27320305,91977.0,91976.0,0.28486694]
[1765376925029,0.77864305,91977.0,91976.0,0.28486694]
[1765376925739,0.77864305,91977.0,91976.0,0.26639]
[1765376928738,0.77864305,91977.0,91976.0,0.29697416]
[1765376930342,0.77864305,91977.0,91976.0,0.35539924]
[1765376931144,0.77864305,91977.0,91976.0,0.35558699]
[1765376931528,0.77864305,91977.0,91976.0,0.30784786]
[1765376940045,0.27320305,91977.0,91976.0,0.30784786]
[1765376940242,0.77864305,91977.0,91976.0,0.29697416]
[1765376941938,0.77864305,91977.0,91976.0,0.28325416]
[1765376942134,0.77864305,91977.0,91976.0,4.16e-06]
[1765376942340,0.2548246,91968.0,91967.0,0.00016309]
[1765376942634,0.7602646,91968.0,91967.0,0.00016309]
[1765376943642,0.74939,91968.0,91967.0,0.25180309]
[1765376943953,0.74939,91968.0,91967.0,0.00116309]
[1765376944153,0.74939,91968.0,91967.0,0.13034309]
[1765376944452,0.74939,91968.0,91967.0,0.25180309]
[1765376944838,0.75139,91968.0,91967.0,0.25280309]
[1765376945538,0.75139,91968.0,91967.0,0.13134309]
[1765376946048,0.75139,91968.0,91967.0,0.25280309]
[1765376947343,0.75139,91968.0,91967.0,0.33076955]
[1765376947851,0.002,91968.0,91967.0,0.33076955]
[1765376948052,0.002,91968.0,91967.0,0.25280309]
[1765376948657,0.24595,91968.0,91967.0,0.25280309]
[1765376954358,0.24595,91968.0,91967.0,0.28904143]
[1765376955556,0.24595,91968.0,91967.0,0.29991613]
[1765376961557,0.002,91968.0,91967.0,0.29991613]
[1765376961758,9.305e-05,91977.0,91976.0,0.2543337]
[1765376961956,9.305e-05,91977.0,91976.0,0.65137204]
[1765376963251,0.00109305,91977.0,91976.0,0.65137204]
[1765376963560,0.24135305,91977.0,91976.0,0.65137204]
[1765376963760,0.00109305,91977.0,91976.0,0.65137204]
[1765376963959,0.00099999,92000.0,91985.0,0.29313]
[1765376964158,0.07118999,92000.0,91985.0,0.32936834]
[1765376964362,0.24864241,92000.0,91985.0,0.32936834]
[1765376964762,0.3608,91998.0,91985.0,0.32936834]
[1765376965260,0.00416309,91986.0,91985.0,0.33036834]
[1765376965665,0.00016309,91986.0,91985.0,0.32936834]
[1765376965867,0.00316309,91986.0,91985.0,0.33036834]
[1765376966363,0.00416309,91986.0,91985.0,0.33036834]
[1765376967767,0.00416309,91986.0,91985.0,0.40848164]
[1765376968151,0.00416309,91986.0,91985.0,0.33036834]
[1765376969360,0.24719309,91986.0,91985.0,0.28069834]
[1765376969667,0.24719309,91986.0,91985.0,0.03723834]
[1765376969968,0.31795309,91986.0,91985.0,0.28079834]
[1765376970864,0.31795309,91986.0,91985.0,0.29167094]
[1765376975465,0.12653309,91986.0,91985.0,0.29167094]
[1765376976268,0.24719309,91986.0,91985.0,0.29167094]
[1765376977360,0.00416309,91986.0,91985.0,0.29167094]
[1765376977760,0.12020309,91986.0,91985.0,0.29167094]
[1765376977963,0.24086309,91986.0,91985.0,0.29167094]
[1765376979762,0.00416309,91986.0,91985.0,0.29167094]
[1765376980575,0.24086309,91986.0,91985.0,0.29167094]
[1765376980769,0.24086309,91986.0,91985.0,0.03723834]
[1765376980967,0.31162309,91986.0,91985.0,0.28079834]
[1765376981466,0.30962309,91986.0,91985.0,0.27979834]
[1765376982075,0.23886309,91986.0,91985.0,0.27979834]
[1765376982461,0.23786309,91986.0,91985.0,0.27979834]
[1765376982976,0.23686309,91986.0,91985.0,0.27979834]
[1765376983277,0.23786309,91986.0,91985.0,0.27979834]
[1765376988176,0.23786309,91986.0,91985.0,0.03623834]
[1765376988381,0.23786309,91986.0,91985.0,0.15540834]
[1765376988676,0.23786309,91986.0,91985.0,0.27979834]
[1765376991382,0.17912233,91986.0,91985.0,0.27979834]
[1765376996783,0.17912233,91986.0,91985.0,0.35176834]
[1765376999686,0.001,91986.0,91985.0,0.35176834]
[1765376999878,0.23791309,91995.0,91994.0,0.2461715]
[1765377000079,0.23791309,91995.0,91994.0,0.64320984]
[1765377000482,0.28270309,91995.0,91994.0,0.39703834]
[1765377000694,0.23775,91993.0,91992.0,0.07828823]
[1765377000999,0.23775,91993.0,91992.0,0.03367317]
[1765377001179,0.23775,91993.0,91992.0,0.26897317]
[1765377001580,0.23775,91993.0,91992.0,0.27984497]
[1765377001782,0.23775,91993.0,91992.0,0.26897317]
[1765377001987,0.23775,91993.0,91992.0,0.27984497]
[1765377002180,0.23775,91993.0,91992.0,0.3581332]
[1765377002391,0.23775,91993.0,91992.0,0.27984497]
[1765377002589,0.23775,91993.0,91992.0,0.34723335]
[1765377002792,1.14299,91993.0,91992.0,0.02758012]
[1765377003087,0.23775,91984.0,91983.0,0.05870123]
[1765377003275,0.2486228,91983.0,91980.0,0.05870123]
[1765377003477,0.2486228,91983.0,91977.0,1.23e-06]
[1765377003478,0.0108734,91978.0,91977.0,1.23e-06]
[1765377003793,0.29658,91968.0,91967.0,0.01103779]
[1765377003986,0.23775,91968.0,91967.0,0.24633779]
[1765377004487,0.11833,91968.0,91967.0,0.60713779]
[1765377004687,0.23775,91985.0,91984.0,0.2461726]
[1765377005079,0.23874999,91990.0,91989.0,0.2461721]
[1765377005286,0.23874999,91990.0,91989.0,0.6069721]
[1765377005475,0.23775,91990.0,91989.0,0.6069721]
[1765377005675,0.23775,91990.0,91989.0,0.47745]
[1765377005887,0.23775,91990.0,91983.0,0.07819974]
[1765377005888,0.23775,91985.0,91984.0,0.07919974]
[1765377006193,0.23775,91985.0,91984.0,0.2363]
[1765377006382,0.23775,91985.0,91984.0,0.2353]
[1765377007087,0.23875,91985.0,91984.0,0.2353]
[1765377007784,0.23775,91985.0,91984.0,0.2353]
[1765377008179,0.23775,91990.0,91989.0,0.2461721]
[1765377008500,0.00016309,91995.0,91994.0,0.3201915]
[1765377008687,0.00016309,91995.0,91994.0,0.6809915]
[1765377008990,0.00016309,91995.0,91994.0,0.75916622]
[1765377009184,0.23712309,91995.0,91994.0,0.6809915]
[1765377009786,0.11667309,91995.0,91994.0,0.6809915]
[1765377010190,0.00016309,91995.0,91994.0,0.6809915]
[1765377010496,0.3608,92010.0,91994.0,0.6809915]
[1765377010497,0.23696,92010.0,92009.0,0.2497898]
[1765377010681,0.00108679,92015.0,92009.0,0.2497898]
[1765377010682,0.00108679,92015.0,92014.0,0.2497892]
[1765377011491,0.23804679,92015.0,92014.0,0.2497892]
[1765377011691,0.23804679,92015.0,92014.0,0.23892]
[1765377011892,0.23804679,92015.0,92005.0,0.00016309]
[1765377011893,0.23696,92006.0,92005.0,0.00016309]
[1765377012698,0.01087,92007.0,92005.0,9e-08]
[1765377012998,0.35599163,92015.0,91971.0,0.23892]
[1765377012999,0.0434,91976.0,91971.0,0.23892]
[1765377013183,0.23696,91972.0,91965.0,0.00108738]
[1765377013387,0.23696,91966.0,91965.0,0.00108738]
[1765377013992,0.23696,91966.0,91965.0,0.01196238]
[1765377014288,0.11551,91966.0,91965.0,0.24000738]
[1765377014690,0.23696,91966.0,91965.0,0.24000738]
[1765377015193,0.23696,91966.0,91965.0,0.63084877]
[1765377016483,0.23696,91966.0,91965.0,0.63184877]
[1765377017282,0.23696,91966.0,91965.0,0.14728877]
[1765377017484,0.23696,91966.0,91965.0,0.27104877]
[1765377018791,0.23696,91966.0,91965.0,0.28192377]
[1765377019497,0.00016309,91975.0,91974.0,0.2497939]
[1765377019498,0.23712309,91975.0,91974.0,0.2497939]
[1765377019688,0.23712309,91975.0,91974.0,0.27983529]
[1765377020392,0.00016309,91975.0,91974.0,0.27983529]
[1765377020590,0.11567309,91975.0,91974.0,0.64063529]
[1765377021093,0.00016309,91975.0,91974.0,0.64063529]
[1765377021691,0.24799689,91975.0,91974.0,0.39080588]
[1765377021889,0.24799689,91975.0,91974.0,0.03000588]
[1765377022092,0.2478348,91966.0,91965.0,0.00108738]
[1765377022292,0.23696,91966.0,91965.0,0.14625732]
[1765377022486,0.59792309,91975.0,91974.0,0.2497939]
[1765377022693,0.11767309,91975.0,91974.0,0.27980384]
[1765377022894,0.00216309,91975.0,91974.0,0.27980384]
[1765377023100,0.00216309,91975.0,91974.0,0.64060384]
[1765377023403,0.23712309,91975.0,91974.0,0.03000994]
[1765377024897,0.23912309,91975.0,91974.0,0.03000994]
[1765377026391,0.23696,91969.0,91968.0,0.0108745]
[1765377026600,0.23696,91969.0,91968.0,0.04086915]
[1765377026802,0.23696,91969.0,91968.0,0.02999465]
[1765377027106,0.59776,91969.0,91968.0,0.02999465]
[1765377027508,0.59776,91969.0,91968.0,0.03099465]
[1765377027801,0.59776,91969.0,91968.0,0.001]
[1765377028197,0.59876,91969.0,91968.0,0.001]
[1765377031301,0.2483059,91957.0,91956.0,0.00016309]
[1765377031497,0.2483059,91957.0,91956.0,3.09e-06]
[1765377031498,1.1146259,91957.0,91956.0,3.09e-06]
[1765377031697,0.2483078,91941.0,91940.0,0.00108767]
[1765377031899,0.23743,91921.0,91920.0,0.00010877]
[1765377032105,0.23743,91921.0,91920.0,0.23665877]
[1765377032307,0.23743,91921.0,91920.0,0.30996877]
[1765377032491,0.12088,91921.0,91920.0,0.30996877]
[1765377032900,0.23743,91921.0,91920.0,0.23665877]
[1765377033100,0.23743,91921.0,91920.0,0.00010877]
[1765377033407,0.23743,91921.0,91920.0,0.00210877]
[1765377034193,0.59823,91921.0,91920.0,0.00210877]
[1765377034401,0.59823,91921.0,91920.0,0.00510877]
[1765377034601,0.23743,91921.0,91920.0,0.32584907]
[1765377034896,0.23743,91921.0,91920.0,0.24165877]
[1765377035496,0.12088,91921.0,91920.0,0.25253907]
[1765377035707,0.00116317,91930.0,91929.0,0.2474292]
[1765377035708,0.12104318,91930.0,91929.0,0.2474292]
[1765377035908,0.23759318,91930.0,91929.0,0.23655]
[1765377036096,0.23743,91921.0,91920.0,0.00510877]
[1765377036404,0.23743,91921.0,91920.0,0.24165877]
[1765377036703,0.23743,91921.0,91920.0,0.23965877]
[1765377037905,0.23743,91921.0,91920.0,0.23665877]
[1765377038413,0.23743,91921.0,91920.0,0.00010877]
[1765377038606,0.23743,91921.0,91920.0,0.00210877]
[1765377038918,0.23843,91921.0,91920.0,0.24165877]
[1765377040410,0.12188,91921.0,91920.0,0.24165877]
[1765377040707,0.001,91921.0,91920.0,0.24165877]
[1765377040901,0.00016318,91930.0,91929.0,0.2474292]
[1765377041106,0.00016318,91930.0,91929.0,0.6082292]
[1765377041614,0.00016318,91930.0,91929.0,0.64711445]
[1765377042206,0.00016318,91930.0,91929.0,0.59935]
[1765377044006,0.00016318,91930.0,91929.0,0.59835]
[1765377044210,0.00016318,91930.0,91929.0,0.59935]
[1765377044408,0.3608,91942.0,91929.0,0.59935]
[1765377044409,0.3608,91951.0,91950.0,0.23655]
[1765377044613,0.12088,91951.0,91950.0,0.2474267]
[1765377045308,0.23743,91957.0,91956.0,0.23655]
[1765377045910,0.23743,91957.0,91956.0,0.247426]